[Event "SixDays Budapest IM-A 10-2024"]
[Site "Budapest"]
[Date "2024.10.02"]
[Round "5.4"]
[White "Li, Xueyi"]
[Black "Pribelszky, Bence Daniel"]
[Result "1/2-1/2"]
[ECO "A40"]
[WhiteElo "2187"]
[BlackElo "2408"]
[Annotator "RC"]
[PlyCount "216"]
[EventDate "2024.09.24"]
[EventType "tourn"]
[EventCountry "HUN"]
[SourceTitle "playchess.com"]
[Source "ChessBase"]
[SourceQuality "1"]
[TimeControl "5400+30"]

1. d4 {[%emt 0:00:03]} e6 {[%emt 0:01:45]} 2. c4 {[%emt 0:00:07]} b6 {[%emt 0:00:05]} 3. Nf3 {[%emt 0:00:27]} Bb7 {[%emt 0:00:09]} 4. Bf4 {[%emt 0:00:16]} Nf6 {[%emt 0:00:51]} 5. e3 {[%emt 0:00:35]} Ne4 {[%emt 0:05:45]} 6. a3 {[%emt 0:02:45]} Be7 {[%emt 0:01:00]} 7. Bd3 {[%emt 0:02:54]} O-O {[%emt 0:01:23]} 8. Qc2 {[%emt 0:00:04]} f5 {[%emt 0:00:41]} 9. Nbd2 {[%emt 0:11:36]} Nxd2 {[%emt 0:01:17]} 10. Nxd2 {[%emt 0:00:04]} Bxg2 {[%emt 0:14:21]} 11. Rg1 {[%emt 0:00:07]} Bb7 {[%emt 0:00:07]} 12. O-O-O {[%emt 0:00:08]} Bf6 {[%emt 0:02:16]} 13. e4 {[%emt 0:17:30]} Nc6 {[%emt 0:20:18]} 14. e5 {[%emt 0:00:22]} Bh4 {[%emt 0:02:09]} 15. Nf3 {[%emt 0:25:02]} Nb4 {[%emt 0:01:51]} 16. Qe2 {[%emt 0:01:39]} Bxf3 {[%emt 0:08:29]} 17. Qxf3 {[%emt 0:00:10]} Nc6 {[%emt 0:00:19]} 18. Bh6 {[%emt 0:06:47]} Rf7 {[%emt 0:00:46]} 19. Qh5 {[%emt 0:02:21]} Qe7 {[%emt 0:03:19]} 20. Be3 {[%emt 0:04:39]} g6 {[%emt 0:04:15]} 21. f4 {[%emt 0:03:26]} Rg7 {[%emt 0:01:06]} 22. Qf3 {[%emt 0:00:24]} Rf8 {[%emt 0:01:32]} 23. d5 {[%emt 0:01:48]} Nd8 {[%emt 0:00:51]} 24. Bc2 {[%emt 0:01:15]} g5 {[%emt 0:05:50]} 25. Rd2 {[%emt 0:03:53]} Nf7 {[%emt 0:05:52]} 26. Rgd1 {[%emt 0:00:29]} gxf4 {[%emt 0:02:40]} 27. Bxf4 {[%emt 0:00:26]} Bg5 {[%emt 0:00:35]} 28. Kb1 {[%emt 0:02:25]} Bxf4 {[%emt 0:01:19]} 29. Qxf4 {[%emt 0:00:02]} Qg5 {[%emt 0:00:05]} 30. Qd4 {[%emt 0:00:05]} Qg4 {[%emt 0:02:59]} 31. dxe6 {[%emt 0:04:34]} dxe6 {[%emt 0:00:04]} 32. Qd7 {[%emt 0:00:10]} Qxc4 {[%emt 0:02:53]} 33. b3 {[%emt 0:00:47]} Qc5 {[%emt 0:01:27]} 34. Qxe6 {[%emt 0:00:32]} Qxe5 {[%emt 0:02:06]} 35. Bxf5 {[%emt 0:01:03]} Kh8 {[%emt 0:04:26]} 36. Rd8 {[%emt 0:03:57]} Rgg8 {[%emt 0:00:50]} 37. Rxf8 {[%emt 0:00:38]} Rxf8 {[%emt 0:00:10]} 38. Rd7 {[%emt 0:01:00]} Qxe6 {[%emt 0:00:46]} 39. Bxe6 {[%emt 0:00:05]} Ng5 {[%emt 0:00:03]} 40. Bc4 {[%emt 0:00:07]} c6 {[%emt 0:03:17]} 41. h4 {[%emt 0:01:24]} Ne4 {[%emt 0:00:31]} 42. Bd3 {[%emt 0:00:54]} Nc5 {[%emt 0:00:28]} 43. Rxh7+ {[%emt 0:00:44]} Kg8 {[%emt 0:00:02]} 44. Bc2 {[%emt 0:00:36]} Nxb3 {[%emt 0:00:03]} 45. Rxa7 {[%emt 0:03:04]} Nd4 {[%emt 0:00:06]} 46. Bd3 {[%emt 0:00:13]} Rf3 {[%emt 0:01:10]} 47. Bc4+ {[%emt 0:00:43]} Kh8 {[%emt 0:00:02]} 48. Rd7 {[%emt 0:00:50]} c5 {[%emt 0:01:40]} 49. a4 {[%emt 0:00:44]} Rc3 {[%emt 0:00:29]} 50. Ba6 {[%emt 0:00:59]} Rb3+ {[%emt 0:00:16]} 51. Kc1 {[%emt 0:00:07]} Ra3 {[%emt 0:00:39]} 52. Rb7 {[%emt 0:00:15]} Rxa4 {[%emt 0:00:35]} 53. Rxb6 {[%emt 0:00:09]} c4 {[%emt 0:00:24]} 54. Kb2 {[%emt 0:00:44]} Ne2 {[%emt 0:00:21]} 55. Rb8+ {[%emt 0:00:57]} Kg7 {[%emt 0:00:01]} 56. Bxc4 {[%emt 0:00:39]} Rxc4 {[%emt 0:00:05]} 57. h5 {[%emt 0:00:03]} Nf4 {[%emt 0:00:30]} 58. h6+ {[%emt 0:00:10]} Kxh6 {[%emt 0:00:09]} 59. Rg8 {[%emt 0:00:11]} Ng6 {[%emt 0:00:21]} 60. Kb3 {[%emt 0:00:12]} Rc7 {[%emt 0:00:21]} 61. Kb4 {[%emt 0:00:26]} Kg5 {[%emt 0:00:08]} 62. Ra8 {[%emt 0:00:44]} Kf5 {[%emt 0:00:35]} 63. Ra5+ {[%emt 0:00:10]} Ke4 {[%emt 0:00:41]} 64. Rc5 {[%emt 0:00:31]} Rb7+ {[%emt 0:00:03]} 65. Rb5 {[%emt 0:00:07]} Rd7 {[%emt 0:00:03]} 66. Rh5 {[%emt 0:00:10]} Kd4 {[%emt 0:00:10]} 67. Kb5 {[%emt 0:00:32]} Ne5 {[%emt 0:00:13]} 68. Rh4+ {[%emt 0:00:28]} Kd5 {[%emt 0:00:05]} 69. Kb4 {[%emt 0:00:12]} Rb7+ {[%emt 0:00:29]} 70. Kc3 {[%emt 0:00:12]} Rc7+ {[%emt 0:00:04]} 71. Kb3 {[%emt 0:00:19]} Nf3 {[%emt 0:00:33]} 72. Rh5+ {[%emt 0:01:22]} Kd4 {[%emt 0:00:09]} 73. Kb4 {[%emt 0:00:44]} Rc1 {[%emt 0:00:41]} 74. Kb5 {[%emt 0:00:23]} Rb1+ {[%emt 0:00:05]} 75. Kc6 {[%emt 0:00:13]} Ne5+ {[%emt 0:00:03]} 76. Kc7 {[%emt 0:00:18]} Rc1+ {[%emt 0:00:30]} 77. Kb6 {[%emt 0:01:11]} Rc5 {[%emt 0:00:31]} 78. Rh1 {[%emt 0:00:37]} Nc4+ {[%emt 0:01:41]} 79. Kb7 {[%emt 0:00:21]} Re5 {[%emt 0:00:41]} 80. Kc6 {[%emt 0:00:27]} Re6+ {[%emt 0:00:17]} 81. Kd7 {[%emt 0:00:19]} Rg6 {[%emt 0:00:31]} 82. Rd1+ {[%emt 0:00:26]} Kc5 {[%emt 0:00:18]} 83. Rc1 {[%emt 0:00:23]} Rg4 {[%emt 0:01:35]} 84. Ke6 {[%emt 0:00:14]} Rf4 {[%emt 0:00:55]} 85. Rd1 {[%emt 0:01:36]} Ne3 {[%emt 0:00:33]} 86. Rc1+ {[%emt 0:00:39]} Kd4 {[%emt 0:00:06]} 87. Ra1 {[%emt 0:00:09]} Re4+ {[%emt 0:00:05]} 88. Kf7 {[%emt 0:00:22]} Ke5 {[%emt 0:00:20]} 89. Ra5+ {[%emt 0:01:41]} Nd5 {[%emt 0:00:03]} 90. Kg6 {[%emt 0:00:32]} Rg4+ {[%emt 0:00:08]} 91. Kf7 {[%emt 0:00:19]} Rg5 {[%emt 0:00:12]} 92. Ra1 {[%emt 0:00:17]} Rf5+ {[%emt 0:00:06]} 93. Kg7 {[%emt 0:00:27]} Rf4 {[%emt 0:00:24]} 94. Ra5 {[%emt 0:00:26]} Ke6 {[%emt 0:00:12]} 95. Ra6+ {[%emt 0:00:14]} Kf5 {[%emt 0:00:05]} 96. Ra5 {[%emt 0:00:13]} Rd4 {[%emt 0:00:08]} 97. Ra1 {[%emt 0:00:22]} Nf4 {[%emt 0:00:25]} 98. Ra5+ {[%emt 0:00:10]} Nd5 {[%emt 0:00:25]} 99. Ra1 {[%emt 0:00:07]} Rb4 {[%emt 0:00:55]} 100. Rf1+ {[%emt 0:00:50]} Nf4 {[%emt 0:00:04]} 101. Kf7 {[%emt 0:01:11]} Rb7+ {[%emt 0:00:21]} 102. Ke8 {[%emt 0:00:19]} Ke6 {[%emt 0:00:18]} 103. Re1+ {[%emt 0:00:10]} Kd6 {[%emt 0:00:04]} 104. Rd1+ {[%emt 0:00:52]} Nd5 {[%emt 0:00:05]} 105. Kf8 {[%emt 0:00:08]} Ke6 {[%emt 0:00:44]} 106. Re1+ {[%emt 0:00:07]} Kf5 {[%emt 0:00:08]} 107. Rf1+ {[%emt 0:00:10]} Nf4 {[%emt 0:00:07]} 108. Ke8 {[%emt 0:00:13]} Ke6 {[%emt 0:00:04]} 1/2-1/2

[Event "SixDays Budapest IM-A 10-2024"]
[Site "Budapest"]
[Date "2024.10.02"]
[Round "5.5"]
[White "Chubakov, Sultan"]
[Black "Krishna C R G"]
[Result "1/2-1/2"]
[ECO "A40"]
[WhiteElo "2265"]
[BlackElo "2425"]
[Annotator "TA"]
[PlyCount "50"]
[EventDate "2024.09.24"]
[EventType "tourn"]
[EventCountry "HUN"]
[SourceTitle "playchess.com"]
[Source "ChessBase"]
[SourceQuality "1"]
[TimeControl "5400+30"]

{[%evp 13,50,12,18,12,23,29,16,21,20,-2,21,15,22,32,35,32,24,17,38,8,18,0,0,-22,0,-44,-34,-61,-41,-38,-33,-40,-32,-37,-31,-44,-9,-17,0]} 1. d4 {[%emt 0:00:03]} e6 {[%emt 0:02:50]} 2. c4 {[%emt 0:00:42]} Nf6 {[%emt 0:00:08]} 3. g3 {[%emt 0:00:49]} Bb4+ {[%emt 0:00:37]} 4. Bd2 {[%emt 0:00:08]} Be7 {[%emt 0:00:02]} 5. Bg2 {[%emt 0:00:33]} d5 {[%emt 0:00:02]} 6. Nf3 {[%emt 0:00:13]} O-O {[%emt 0:00:08]} 7. O-O {[%emt 0:00:04]} Nbd7 {[%emt 0:00:06]} 8. Qc2 {[%emt 0:01:00]} Ne4 {[%emt 0:00:02]} 9. Nc3 {[%emt 0:03:13]} Nxd2 {[%emt 0:00:17]} 10. Nxd2 {[%emt 0:00:53]} c6 {[%emt 0:00:02]} 11. b3 {[%emt 0:09:14]} Bf6 {[%emt 0:17:39]} 12. e3 {[%emt 0:07:05]} b6 {[%emt 0:01:30]} 13. b4 {[%emt 0:10:20]} Bb7 {[%emt 0:06:03]} 14. Rac1 {[%emt 0:13:27]} Rc8 {[%emt 0:03:50]} 15. Qb3 {[%emt 0:03:36]} Qe7 {[%emt 0:01:36]} 16. a4 {[%emt 0:06:47]} Rfd8 {[%emt 0:05:32]} 17. cxd5 {[%emt 0:05:45]} cxd5 {[%emt 0:01:06]} 18. f4 {[%emt 0:02:29]} Qd6 {[%emt 0:02:15]} 19. Na2 {[%emt 0:06:11]} Be7 {[%emt 0:02:47]} 20. Qb2 {[%emt 0:02:16]} Nf6 {[%emt 0:11:11]} 21. Rxc8 {[%emt 0:04:24]} Rxc8 {[%emt 0:00:02]} 22. Rc1 {[%emt 0:01:00] Against Qc6} Rxc1+ {[%emt 0:00:04]} 23. Qxc1 {[%emt 0:00:03]} Qd7 {[%emt 0:00:06]} 24. b5 {[%emt 0:03:58]} Ne8 {[%emt 0:10:50]} 25. Bf1 {[%emt 0:03:20]} Qc7 {Weighted Error Value: White=0.11 (very precise) /Black=0.09 (flawless) .  Inaccurate:     	White=3     	Black=1      OK:         	White=5     	Black=7} 1/2-1/2

[Event "SixDays Budapest IM-A 10-2024"]
[Site "Budapest"]
[Date "2024.10.03"]
[Round "6.1"]
[White "Kwon, Sehyun"]
[Black "Valkova, Angelika"]
[Result "0-1"]
[ECO "C55"]
[WhiteElo "2248"]
[BlackElo "2068"]
[Annotator "RC"]
[PlyCount "52"]
[EventDate "2024.09.24"]
[EventType "tourn"]
[EventCountry "HUN"]
[SourceTitle "playchess.com"]
[Source "ChessBase"]
[SourceQuality "1"]
[TimeControl "5400+30"]

1. e4 {[%emt 0:00:21]} e5 {[%emt 0:00:05]} 2. Nf3 {[%emt 0:00:15]} Nc6 {[%emt 0:00:05]} 3. Bc4 {[%emt 0:00:30]} Nf6 {[%emt 0:00:07]} 4. d4 {[%emt 0:00:39]} exd4 {[%emt 0:00:08]} 5. e5 {[%emt 0:00:08]} d5 {[%emt 0:00:06]} 6. Bb5 {[%emt 0:00:06]} Nd7 {[%emt 0:00:06]} 7. Bxc6 {[%emt 0:01:00]} bxc6 {[%emt 0:00:05]} 8. Nxd4 {[%emt 0:01:23]} Nxe5 {[%emt 0:03:37]} 9. O-O {[%emt 0:08:21]} Bd6 {[%emt 0:02:24]} 10. f4 {[%emt 0:03:55]} Ng4 {[%emt 0:03:32]} 11. Re1+ {[%emt 0:04:23]} Kf8 {[%emt 0:00:11]} 12. h3 {[%emt 0:01:11]} h5 {[%emt 0:10:28]} 13. hxg4 {[%emt 0:11:32]} hxg4 {[%emt 0:00:37]} 14. g3 {[%emt 0:03:25]} Qf6 {[%emt 0:03:31]} 15. Kg2 {[%emt 0:06:03]} c5 {[%emt 0:01:51]} 16. Nb3 {[%emt 0:08:38]} d4 {[%emt 0:23:43]} 17. Na5 {[%emt 0:01:16]} c4 {[%emt 0:00:21]} 18. Qe2 {[%emt 0:06:44]} Be6 {[%emt 0:05:18]} 19. Qe4 {[%emt 0:04:53]} Re8 {[%emt 0:02:33]} 20. Bd2 {[%emt 0:01:22]} Rh5 {[%emt 0:11:05]} 21. Kg1 {[%emt 0:04:19]} c3 {[%emt 0:05:17]} 22. bxc3 {[%emt 0:01:36]} dxc3 {[%emt 0:02:20]} 23. Bxc3 {[%emt 0:01:47]} Bc5+ {[%emt 0:00:12]} 24. Kf1 {[%emt 0:03:06]} Qh6 {[%emt 0:01:16]} 25. Nd2 {[%emt 0:08:40]} Bd7 {[%emt 0:09:39]} 26. Be5 {[%emt 0:05:39]} Rh2 {[%emt 0:01:10]} 0-1

[Event "SixDays Budapest IM-A 10-2024"]
[Site "Budapest"]
[Date "2024.10.03"]
[Round "6.2"]
[White "Pavan Karthikeya Varma Gunturi"]
[Black "Krishna C R G"]
[Result "0-1"]
[ECO "B00"]
[WhiteElo "2056"]
[BlackElo "2425"]
[Annotator "RC"]
[PlyCount "82"]
[EventDate "2024.09.24"]
[EventType "tourn"]
[EventCountry "HUN"]
[SourceTitle "playchess.com"]
[Source "ChessBase"]
[SourceQuality "1"]
[TimeControl "5400+30"]

1. e4 {[%emt 0:00:12]} Nc6 {[%emt 0:00:04]} 2. Nf3 {[%emt 0:00:20]} d6 {[%emt 0:00:07]} 3. d4 {[%emt 0:00:57]} Nf6 {[%emt 0:00:06]} 4. Nc3 {[%emt 0:00:53]} Bg4 {[%emt 0:01:20]} 5. Be3 {[%emt 0:01:59]} g6 {[%emt 0:02:09]} 6. h3 {[%emt 0:03:07]} Bxf3 {[%emt 0:00:03]} 7. Qxf3 {[%emt 0:00:08]} Bg7 {[%emt 0:00:09]} 8. Bb5 {[%emt 0:06:36]} O-O {[%emt 0:02:18]} 9. Bxc6 {[%emt 0:02:17]} bxc6 {[%emt 0:00:01]} 10. O-O {[%emt 0:02:21]} Nd7 {[%emt 0:01:04]} 11. Rfd1 {[%emt 0:04:00]} e6 {[%emt 0:12:17]} 12. Rab1 {[%emt 0:06:05]} a5 {[%emt 0:01:03]} 13. Na4 {[%emt 0:04:41]} e5 {[%emt 0:03:07]} 14. Qe2 {[%emt 0:04:31]} Qh4 {[%emt 0:06:39]} 15. Nc3 {[%emt 0:03:52]} Rae8 {[%emt 0:11:30]} 16. d5 {[%emt 0:10:17]} c5 {[%emt 0:08:27]} 17. f3 {[%emt 0:04:55]} f5 {[%emt 0:00:31]} 18. Qb5 {[%emt 0:05:07]} Nf6 {[%emt 0:04:47]} 19. Bf2 {[%emt 0:00:36]} Qg5 {[%emt 0:06:02]} 20. Qxa5 {[%emt 0:05:00]} Nh5 {[%emt 0:00:57]} 21. h4 {[%emt 0:01:07]} Qe7 {[%emt 0:00:07]} 22. exf5 {[%emt 0:01:20]} gxf5 {[%emt 0:01:42]} 23. Nb5 {[%emt 0:04:03]} Rf7 {[%emt 0:00:12]} 24. Qd2 {[%emt 0:04:23]} Bf6 {[%emt 0:04:49]} 25. Qe1 {[%emt 0:03:59]} Rg7 {[%emt 0:01:10]} 26. a4 {[%emt 0:02:12]} Kh8 {[%emt 0:03:31]} 27. a5 {[%emt 0:01:43]} Reg8 {[%emt 0:00:24]} 28. a6 {[%emt 0:00:37]} Rxg2+ {[%emt 0:00:23]} 29. Kf1 {[%emt 0:00:02]} Nf4 {[%emt 0:04:48]} 30. Qe3 {[%emt 0:01:56]} Bxh4 {[%emt 0:00:28]} 31. Rd2 {[%emt 0:01:19]} Bxf2 {[%emt 0:00:24]} 32. Qxf2 {[%emt 0:00:21]} Rxf2+ {[%emt 0:00:02]} 33. Kxf2 {[%emt 0:00:36]} e4 {[%emt 0:00:24]} 34. Rh1 {[%emt 0:01:38]} e3+ {[%emt 0:00:12]} 35. Ke1 {[%emt 0:00:04]} exd2+ {[%emt 0:00:10]} 36. Kxd2 {[%emt 0:00:06]} Qe2+ {[%emt 0:00:04]} 37. Kc1 {[%emt 0:00:07]} Qxb5 {[%emt 0:00:03]} 38. a7 {[%emt 0:00:32]} Qa5 {[%emt 0:00:06]} 39. Kb1 {[%emt 0:00:07]} Qxa7 {[%emt 0:00:03]} 40. Re1 {[%emt 0:00:12]} c4 {[%emt 0:00:13]} 41. c3 {[%emt 0:00:04]} Rg1 {[%emt 0:00:05]} 0-1

[Event "SixDays Budapest IM-A 10-2024"]
[Site "Budapest"]
[Date "2024.10.03"]
[Round "6.3"]
[White "Pribelszky, Bence Daniel"]
[Black "Chubakov, Sultan"]
[Result "1/2-1/2"]
[ECO "B42"]
[WhiteElo "2408"]
[BlackElo "2265"]
[Annotator "TA"]
[PlyCount "62"]
[EventDate "2024.09.24"]
[EventType "tourn"]
[EventCountry "HUN"]
[SourceTitle "playchess.com"]
[Source "ChessBase"]
[SourceQuality "1"]
[TimeControl "5400+30"]

{[%evp 16,62,39,40,37,32,36,28,46,-3,38,13,16,24,10,28,37,4,2,-15,-9,-6,39,22,32,0,0,0,0,-10,-5,-74,-68,-83,-80,-80,-91,-96,-61,-75,-68,-75,-70,-70,-52,-39,-45,-55,-22]} 1. e4 {[%emt 0:02:04]} c5 {[%emt 0:00:05]} 2. Nf3 {[%emt 0:00:06]} e6 {[%emt 0:00:04]} 3. d4 {[%emt 0:00:05]} cxd4 {[%emt 0:00:04]} 4. Nxd4 {[%emt 0:00:06]} a6 {[%emt 0:00:04]} 5. Bd3 {[%emt 0:00:08]} Bc5 {[%emt 0:00:07]} 6. Nb3 {[%emt 0:00:06]} Ba7 {[%emt 0:00:12]} 7. Qe2 {[%emt 0:00:34]} Nc6 {[%emt 0:01:14]} 8. Be3 {[%emt 0:00:06]} Nge7 {[%emt 0:01:05]} 9. O-O {[%emt 0:02:49]} O-O {[%emt 0:00:36]} 10. Bxa7 {[%emt 0:08:28]} Rxa7 {[%emt 0:00:08]} 11. f4 {[%emt 0:00:05]} b6 {[%emt 0:15:03] White has an edge.} 12. Kh1 {[%emt 0:01:19]} (12. a3 $14 {deserves consideration.}) 12... Bb7 {[%emt 0:06:03]} 13. c4 {[%emt 0:02:07]} f5 {[%emt 0:07:05]} 14. Nc3 {[%emt 0:04:17]} Nb4 {[%emt 0:03:22]} 15. Bb1 {[%emt 0:05:31]} Qc7 {[%emt 0:02:22]} 16. exf5 {[%emt 0:12:54]} Nxf5 {[%emt 0:00:23]} 17. Be4 {[%emt 0:00:10]} Bxe4 {[%emt 0:07:06]} 18. Nxe4 {[%emt 0:00:14]} h6 {[%emt 0:00:35]} 19. a3 {[%emt 0:25:56]} Nc6 {[%emt 0:00:07]} 20. Qd2 {[%emt 0:01:04]} Nce7 {[%emt 0:04:55]} 21. Rac1 {[%emt 0:00:31]} Qc6 {[%emt 0:04:02]} 22. Nf2 {[%emt 0:05:23]} Rc7 {[%emt 0:05:29]} 23. Nd3 {[%emt 0:00:34]} (23. Qe2 $11 {remains equal.}) 23... Qa4 $17 {[%emt 0:02:18][%csl LRb3,LRc4]} 24. Qb4 {[%emt 0:16:05]} Qxb4 {[%emt 0:03:31]} 25. Nxb4 {[%emt 0:00:03] [#]} a5 {[%emt 0:01:41]} 26. Nd3 {[%emt 0:00:02]} Ne3 {[%emt 0:07:55][%csl LRc4,LRf1]} 27. Rfe1 {[%emt 0:00:11]} Nxc4 {[%emt 0:02:35]} 28. Nd4 {[%emt 0:00:09] Black must now prevent b3.} Rcc8 {[%emt 0:02:30]} 29. g3 {[%emt 0:00:33] Black is slightly better.} Nd5 {[%emt 0:03:10]} 30. Nb5 {[%emt 0:01:37]} Nce3 {[%emt 0:01:57]} 31. Ne5 {[%emt 0:00:32]} Rcd8 {[%emt 0:05:36] Weighted Error Value: White=0.13 (very precise) /Black=0.08 (flawless) .  Mistake:       	White=2     	---        Inaccurate:     	White=2     	Black=4      OK:         	White=12    	Black=9      Best:        	---       	Black=1} 1/2-1/2

[Event "SixDays Budapest IM-A 10-2024"]
[Site "Budapest"]
[Date "2024.10.03"]
[Round "6.4"]
[White "Kustar, Sandor"]
[Black "Li, Xueyi"]
[Result "1/2-1/2"]
[ECO "A06"]
[WhiteElo "2252"]
[BlackElo "2187"]
[Annotator "RC"]
[PlyCount "98"]
[EventDate "2024.09.24"]
[EventType "tourn"]
[EventCountry "HUN"]
[SourceTitle "playchess.com"]
[Source "ChessBase"]
[SourceQuality "1"]
[TimeControl "5400+30"]

1. Nf3 {[%emt 0:00:04]} d5 {[%emt 0:00:05]} 2. g3 {[%emt 0:01:01]} c6 {[%emt 0:01:53]} 3. Bg2 {[%emt 0:00:11]} Bf5 {[%emt 0:00:36]} 4. d3 {[%emt 0:00:15]} e6 {[%emt 0:00:15]} 5. O-O {[%emt 0:00:10]} h6 {[%emt 0:00:28]} 6. c4 {[%emt 0:00:22]} dxc4 {[%emt 0:01:07]} 7. dxc4 {[%emt 0:00:08]} Qxd1 {[%emt 0:00:13]} 8. Rxd1 {[%emt 0:00:05]} Nf6 {[%emt 0:00:12]} 9. Nc3 {[%emt 0:01:46]} Be7 {[%emt 0:03:19]} 10. Nd4 {[%emt 0:02:29]} Bg6 {[%emt 0:12:44]} 11. e4 {[%emt 0:00:58]} Nbd7 {[%emt 0:07:34]} 12. f3 {[%emt 0:00:10]} Bc5 {[%emt 0:06:05]} 13. Na4 {[%emt 0:01:07]} Be7 {[%emt 0:06:36]} 14. Be3 {[%emt 0:06:44]} O-O {[%emt 0:01:15]} 15. c5 {[%emt 0:24:07]} Rfd8 {[%emt 0:07:19]} 16. Nb3 {[%emt 0:02:43]} Ne5 {[%emt 0:20:36]} 17. Bd4 {[%emt 0:01:18]} Nc4 {[%emt 0:03:37]} 18. Bf1 {[%emt 0:01:50]} e5 {[%emt 0:03:27]} 19. Bf2 {[%emt 0:00:15]} Rxd1 {[%emt 0:00:53]} 20. Rxd1 {[%emt 0:00:04]} b5 {[%emt 0:00:40]} 21. Bxc4 {[%emt 0:00:25]} bxa4 {[%emt 0:09:01]} 22. Na5 {[%emt 0:00:09]} Rc8 {[%emt 0:00:18]} 23. Ba6 {[%emt 0:05:03]} Rc7 {[%emt 0:00:01]} 24. Bb7 {[%emt 0:02:01]} Nd7 {[%emt 0:00:17]} 25. Rc1 {[%emt 0:03:18]} Bg5 {[%emt 0:02:08]} 26. Rc4 {[%emt 0:00:35]} Bd2 {[%emt 0:00:42]} 27. Bxc6 {[%emt 0:01:52]} Bxa5 {[%emt 0:01:00]} 28. Bxa4 {[%emt 0:00:03]} f6 {[%emt 0:04:17]} 29. Rc2 {[%emt 0:02:49]} f5 {[%emt 0:02:25]} 30. c6 {[%emt 0:02:17]} Nf6 {[%emt 0:03:02]} 31. exf5 {[%emt 0:00:34]} Bxf5 {[%emt 0:00:22]} 32. Rc5 {[%emt 0:00:06]} Bb6 {[%emt 0:00:47]} 33. Rxe5 {[%emt 0:00:07]} Bg6 {[%emt 0:01:13]} 34. b4 {[%emt 0:01:30]} Bf7 {[%emt 0:00:48]} 35. a3 {[%emt 0:02:05]} Kf8 {[%emt 0:01:26]} 36. b5 {[%emt 0:00:35]} Nd5 {[%emt 0:01:01]} 37. Bc2 {[%emt 0:06:00]} Re7 {[%emt 0:00:28]} 38. Re4 {[%emt 0:01:43]} Nc3 {[%emt 0:00:32]} 39. Rxe7 {[%emt 0:02:09]} Kxe7 {[%emt 0:00:01]} 40. a4 {[%emt 0:00:20]} Kd6 {[%emt 0:00:33]} 41. g4 {[%emt 0:00:55]} Bd5 {[%emt 0:00:15]} 42. Kg2 {[%emt 0:00:17]} Ne2 {[%emt 0:00:40]} 43. h4 {[%emt 0:06:10]} Nf4+ {[%emt 0:00:33]} 44. Kg3 {[%emt 0:00:23]} g5 {[%emt 0:00:30]} 45. hxg5 {[%emt 0:00:06]} hxg5 {[%emt 0:00:02]} 46. Bd1 {[%emt 0:03:02]} Nd3 {[%emt 0:00:25]} 47. Bxb6 {[%emt 0:00:17]} axb6 {[%emt 0:00:02]} 48. Bc2 {[%emt 0:00:18]} Nf4 {[%emt 0:00:46]} 49. Kf2 {[%emt 0:00:13]} Kc7 {[%emt 0:00:46]} 1/2-1/2

[Event "SixDays Budapest IM-A 10-2024"]
[Site "Budapest"]
[Date "2024.10.03"]
[Round "6.5"]
[White "Polyik, Peter"]
[Black "Zia, Tahsin Tajwar"]
[Result "1/2-1/2"]
[ECO "A14"]
[WhiteElo "2304"]
[BlackElo "2255"]
[Annotator "RC"]
[PlyCount "36"]
[EventDate "2024.09.24"]
[EventType "tourn"]
[EventCountry "HUN"]
[SourceTitle "playchess.com"]
[Source "ChessBase"]
[SourceQuality "1"]
[TimeControl "5400+30"]

1. c4 {[%emt 0:00:54]} Nf6 {[%emt 0:00:29]} 2. g3 {[%emt 0:00:06]} e6 {[%emt 0:01:12]} 3. Bg2 {[%emt 0:00:06]} d5 {[%emt 0:00:03]} 4. Nf3 {[%emt 0:00:06]} Be7 {[%emt 0:00:17]} 5. O-O {[%emt 0:00:16]} O-O {[%emt 0:00:04]} 6. b3 {[%emt 0:01:03]} b6 {[%emt 0:00:24]} 7. Nc3 {[%emt 0:01:06]} Bb7 {[%emt 0:00:08]} 8. d4 {[%emt 0:00:14]} c5 {[%emt 0:02:53]} 9. cxd5 {[%emt 0:04:55]} Nxd5 {[%emt 0:01:51]} 10. Nxd5 {[%emt 0:00:47]} Qxd5 {[%emt 0:05:58]} 11. dxc5 {[%emt 0:15:50]} Bxc5 {[%emt 0:04:45]} 12. Bb2 {[%emt 0:01:19]} Na6 {[%emt 0:02:32]} 13. Qxd5 {[%emt 0:15:16]} Bxd5 {[%emt 0:01:16]} 14. Ne5 {[%emt 0:00:10]} Bxg2 {[%emt 0:04:32]} 15. Kxg2 {[%emt 0:00:05]} f6 {[%emt 0:00:48]} 16. Nd7 {[%emt 0:00:48]} Rfd8 {[%emt 0:00:16]} 17. Nxc5 {[%emt 0:00:07]} Nxc5 {[%emt 0:00:08]} 18. Rfd1 {[%emt 0:00:03]} e5 {[%emt 0:02:42]} 1/2-1/2

[Event "SixDays Budapest IM-A 10-2024"]
[Site "Budapest"]
[Date "2024.10.04"]
[Round "7.1"]
[White "Valkova, Angelika"]
[Black "Pavan Karthikeya Varma Gunturi"]
[Result "1/2-1/2"]
[ECO "E28"]
[WhiteElo "2068"]
[BlackElo "2056"]
[Annotator "RC"]
[PlyCount "64"]
[EventDate "2024.09.24"]
[EventType "tourn"]
[EventCountry "HUN"]
[SourceTitle "playchess.com"]
[Source "ChessBase"]
[SourceQuality "1"]
[TimeControl "5400+30"]

1. d4 {[%emt 0:01:06]} Nf6 {[%emt 0:00:09]} 2. c4 {[%emt 0:00:06]} e6 {[%emt 0:00:09]} 3. Nc3 {[%emt 0:00:05]} Bb4 {[%emt 0:00:36]} 4. e3 {[%emt 0:00:07]} O-O {[%emt 0:01:07]} 5. a3 {[%emt 0:00:09]} Bxc3+ {[%emt 0:01:13]} 6. bxc3 {[%emt 0:00:06]} d6 {[%emt 0:02:00]} 7. Ne2 {[%emt 0:00:16]} b6 {[%emt 0:03:30]} 8. Ng3 {[%emt 0:00:49]} Bb7 {[%emt 0:01:15]} 9. f3 {[%emt 0:00:31]} Nbd7 {[%emt 0:02:10]} 10. e4 {[%emt 0:01:28]} e5 {[%emt 0:00:46]} 11. Bd3 {[%emt 0:03:09]} Re8 {[%emt 0:01:17]} 12. O-O {[%emt 0:00:10]} Nf8 {[%emt 0:04:25]} 13. Be3 {[%emt 0:00:35]} Ng6 {[%emt 0:01:36]} 14. Qd2 {[%emt 0:11:33]} c5 {[%emt 0:06:22]} 15. a4 {[%emt 0:00:15]} a5 {[%emt 0:04:38]} 16. Rfd1 {[%emt 0:00:54]} Re6 {[%emt 0:11:40]} 17. Nf5 {[%emt 0:08:14]} Qc7 {[%emt 0:03:59]} 18. d5 {[%emt 0:07:28]} Ree8 {[%emt 0:01:18]} 19. Bh6 {[%emt 0:05:02]} Nh5 {[%emt 0:08:47]} 20. g4 {[%emt 0:03:51]} Ngf4 {[%emt 0:10:05]} 21. gxh5 {[%emt 0:03:12]} gxh6 {[%emt 0:00:13]} 22. Kh1 {[%emt 0:02:00]} Kh8 {[%emt 0:03:09]} 23. Rg1 {[%emt 0:14:01]} Qd8 {[%emt 0:05:12]} 24. Nxh6 {[%emt 0:10:24]} Qf6 {[%emt 0:00:50]} 25. Ng4 {[%emt 0:00:35]} Qh4 {[%emt 0:01:51]} 26. Rab1 {[%emt 0:02:40]} Rg8 {[%emt 0:04:26]} 27. Nh6 {[%emt 0:07:26]} Qxh5 {[%emt 0:04:47]} 28. Ng4 {[%emt 0:05:07]} Qh4 {[%emt 0:00:44]} 29. Rxb6 {[%emt 0:04:55]} Bc8 {[%emt 0:02:05]} 30. Ne3 {[%emt 0:06:05]} Rxg1+ {[%emt 0:01:47]} 31. Kxg1 {[%emt 0:00:04]} Nxd3 {[%emt 0:00:48]} 32. Qxd3 {[%emt 0:01:31]} Bh3 {[%emt 0:00:12]} 1/2-1/2